Cogmind - Beta 14 @@@ ROGUE MODE // 2025.03.23 @ 19:23:55 Player: Mercey Result: Destroyed by G-47 Trooper with Particle Gun Performance ------------- Evolutions (2) 1000 Regions Visited (3) 600 Robots Destroyed (72) 360 Value Destroyed (2215) 2215 Prototype IDs (5) 100 Alien Tech Used (0) 0 Bonus (134) 134 TOTAL SCORE: 4409 Bonus ------- High Alert Combat Kills 134 Cogmind --------- Core Integrity 0/550 Matter 188/300 Energy 100/100 System Corruption 0% Temperature Cool (9) Movement Rolling (175) Ox5 Location -8/Materials Parts ------- > --- POWER (2) -------- (None) > --- PROPULSION (3) --- Compact Wheel > --- UTILITY (4) ------ Improved Heat Sink Huge Storage Unit Visual Processing Unit > --- WEAPON (2) ------- Advanced Beam Rifle Flail > --- INVENTORY (25) --- Light Treads Light Treads Improved Carbon-fiber Leg Active Sensor Suite Targeting Computer Energy Filter Transmission Jammer Grenade Launcher Rocket Launcher Peak State ------------ > --- POWER ------------ Nuclear Core Improved Deuterium Engine > --- PROPULSION ------- Carbon-fiber Leg Improved Carbon-fiber Leg Improved Carbon-fiber Leg > --- UTILITY ---------- Huge Storage Unit Visual Processing Unit Weapon Cycler System Shield > --- WEAPON ----------- Advanced Beam Rifle Axe > --- INVENTORY -------- Light Deuterium Engine Light Nuclear Core Improved Deuterium Engine Light Treads Aluminum Leg Armored Wheel Improved Heat Sink Active Sensor Suite Targeting Computer Energy Filter Transmission Jammer Gauss Rifle Grenade Launcher Rocket Launcher Flail [Rating: 41] Favorites ----------- Power Nuclear Core Engine Improved Ion Engine Power Core Nuclear Core Propulsion Light Treads Treads Light Treads Leg Improved Carbon-fiber Leg Wheel Wheel Utility Large Storage Unit Device Heat Sink Storage Large Storage Unit Processor Visual Processing Unit Hackware System Shield Protection Light Armor Plating Weapon Advanced Beam Cannon Energy Gun Spread Laser Energy Cannon Advanced Beam Cannon Ballistic Gun Assault Rifle Launcher Rocket Launcher Special Weapon Plasma Cutter Impact Weapon Flail Slashing Weapon Axe Build | -11 -10 -9 -8 ------- Run | Yrd Mat Mat Mat Slots Evolved 4 | . . 2 2 Power 1 | . . . 1 Propulsion 1 | . . 1 . Utility 2 | . . 1 1 Weapon . | . . . . Parts Attached 87 | 7 3 34 43 Power 15 | 1 . 6 8 Engine 10 | 1 . 5 4 Core 5 | . . 1 4 Reactor . | . . . . Propulsion 23 | 3 . 8 12 Treads 9 | 1 . 8 . Leg 6 | . . . 6 Wheel 8 | 2 . . 6 Hover . | . . . . Flight . | . . . . Utility 20 | 1 2 5 12 Device 9 | . 1 2 6 Storage 3 | 1 1 . 1 Processor 2 | . . . 2 Hackware 1 | . . . 1 Protection 5 | . . 3 2 Artifact . | . . . . Weapon 29 | 2 1 15 11 Energy Gun 7 | 1 . 4 2 Energy Cannon 6 | . . 4 2 Ballistic Gun 6 | 1 1 1 3 Ballistic Cannon . | . . . . Launcher 2 | . . 2 . Special Weapon 2 | . . 2 . Impact Weapon 4 | . . 2 2 Slashing Weapon 2 | . . . 2 Piercing Weapon . | . . . . Special Melee Weapon . | . . . . Unidentified Prototypes 3 | . . 1 2 Parts Lost 40 | . . 16 24 Power 10 | . . 3 7 Propulsion 15 | . . 6 9 Utility 8 | . . 4 4 Weapon 7 | . . 3 4 Highest Loss Streak 14 | . . 10 14 To Critical Strikes . | . . . . Average Slot Usage (%) 91 | . 91 88 95 Engine 8 | . 14 9 4 Core 4 | . . . 12 Treads 19 | . . 28 14 Leg 2 | . . . 8 Wheel 5 | . 28 1 2 Device 9 | . 5 10 8 Storage 10 | . 14 11 9 Processor 1 | . . . 3 Hackware 2 | . . . 8 Protection 5 | . . 6 5 Energy Gun 7 | . 14 7 5 Energy Cannon 4 | . . 5 4 Ballistic Gun 4 | . 14 2 3 Impact Weapon 2 | . . 3 1 Slashing Weapon 1 | . . . 2 Peak Build Rating 41 | 6 7 17 41 Average Rating 17 | 3 6 12 30 On Entrance 7 | . 6 7 17 Naked Turns . | . . . . Heaviest Build 103 | 14 30 42 103 Greatest Support 63 | 20 20 63 63 Greatest Overweight (x) 5 | . 1 3 5 Average Overweight (x) . | . . . . Largest Inventory Capacity 25 | 8 15 15 25 Average Capacity 15 | 6 13 15 17 Most Carried 19 | 4 9 15 19 Average Carried 12 | 2 7 12 14 Final Capacity 25 | 8 15 15 25 Final Carried 15 | 4 9 15 11 Class Distribution -------------------- 67% | Mutant 32% | Scavenger-Mutant Dominant Class ---------------- Mutant | -10/Materials Mutant | -9/Materials Mutant | -8/Materials Resources | -11 -10 -9 -8 ----------- Run | Yrd Mat Mat Mat Matter Collected 1215 | 215 163 471 366 Remotely . | . . . . Salvage Created 2497 | . 303 1076 1118 Parts 147 | . 18 69 60 Haulers Intercepted 2 | . . 1 1 Recyclers Shooed 2 | . 1 1 . Parts Field Recycled . | . . . . Retrieved Matter . | . . . . Parts Self-Destructed . | . . . . Prevented . | . . . . Kills | -11 -10 -9 -8 ------- Run | Yrd Mat Mat Mat Combat Hostiles Destroyed 61 | . 9 31 21 Melee 13 | . . 6 7 Guns 29 | . 9 14 6 Cannons 13 | . . 7 6 AOE 1 | . . 1 . Classes Destroyed 13 | . 3 4 6 Worker 2 | . . 1 1 Builder 1 | . . 1 . Tunneler 1 | . . . 1 Hauler 2 | . . 1 1 Recycler 1 | . . . 1 Operator 1 | . . . 1 Watcher 3 | . 1 1 1 Swarmer 15 | . 3 9 3 Grunt 31 | . 6 14 11 Sentry 11 | . . 8 3 Specialist 2 | . . . 2 Hunter 1 | . . . 1 Heavy 1 | . . . 1 Best Kill Streak 6 | . 5 6 4 Combat Bots Only 7 | . 5 5 7 Max Kills in Single Turn 2 | . 2 1 1 Gunslinging 1 | . 1 . . Exploded 1 | . . 1 . Melee 1 | . . 1 1 Uniques/NPCs Destroyed . | . . . . Combat | -11 -10 -9 -8 -------- Run | Yrd Mat Mat Mat Hostile Shots Fired 553 | . 41 236 276 Missed 116 | . 12 61 43 Damage Taken 5543 | . 294 2162 3087 Core 928 | . 48 321 559 Absorbed by Shields . | . . . . Regen/Repaired (Parts) 79 | . . 79 . Core Remaining (%) 66 | 100 80 19 . Volleys Fired 160 | . 26 70 64 Largest 2 | . 2 2 2 Hottest 133 | . 70 133 123 Shots Fired 269 | . 52 105 112 Gun 200 | . 52 65 83 Cannon 63 | . . 34 29 Launcher 5 | . . 5 . Special 1 | . . 1 . Kinetic 83 | . 26 20 37 Thermal 181 | . 26 80 75 Explosive 5 | . . 5 . Electromagnetic . | . . . . Robot Hit Streak 37 | . 10 37 7 Robot Miss Streak 8 | . 4 8 3 Penetration Max 1 | . . . 1 Secondary Targets 3 | . 2 . 1 Max Gunslinging Chain 1 | . 1 . 1 Shots Hit Robots 237 | . 35 100 102 Core Hits 120 | . 18 66 36 Critical Kills 4 | . . 3 1 Critical Parts Destroyed 7 | . 1 3 3 Critical Strikes 17 | . 2 7 8 Burn 4 | . 1 1 2 Destroy 1 | . 1 . . Smash 10 | . . 6 4 Sever 2 | . . . 2 Melee Attacks 71 | . . 31 40 Impact 48 | . . 31 17 Slashing 23 | . . . 23 Piercing . | . . . . Sneak Attacks 5 | . . 3 2 Combat Hostiles 1 | . . 1 . Follow-up Attacks 4 | . . . 4 Damage Inflicted 5581 | . 447 2353 2781 Guns 2388 | . 445 743 1200 Cannons 881 | . . 412 469 Explosions 232 | . . 232 . Melee 2011 | . . 916 1095 Ramming 57 | . 2 38 17 Kinetic 1069 | . 193 208 668 Thermal 2212 | . 252 959 1001 Explosive 232 | . . 232 . Electromagnetic . | . . . . Impact 1408 | . . 916 492 Slashing 603 | . . . 603 Piercing . | . . . . Highest Corruption 1 | . . 1 . Average Corruption 1 | . . 1 . Corruption Purged . | . . . . Corruption Blocked . | . . . . Effects 2 | . . 2 . Message Errors 1 | . . 1 . Data Loss (minor) 1 | . . 1 . Overload Shots . | . . . . Overflow Damage 385 | . . 202 183 Projectiles 6 | . . 5 1 Explosions 7 | . . 7 . Melee 372 | . . 190 182 Knockbacks 8 | . . 4 4 Impact 8 | . . 4 4 Kinetic . | . . . . Secondary . | . . . . Self-Inflicted Damage 56 | . 1 55 . Shots 1 | . . 1 . Rammed 6 | . 1 5 . Targets Rammed 8 | . 1 5 2 Kicked . | . . . . Crushed 2 | . . . 2 Highest Temperature 477 | . 75 434 477 Average Temperature 114 | . 28 113 141 Received Heat Transfer 2298 | . 120 828 1350 Effects 10 | . . 3 7 Shutdowns 4 | . . . 4 Interference 2 | . . 1 1 Matter Decay 2 | . . 2 . Short Circuit 2 | . . . 2 Siege Activations . | . . . . Robots Corrupted 5 | . . 3 2 Combat Hostiles 5 | . . 3 2 Parts Fried 4 | . . 3 1 Impact Corruptions 15 | . . 9 6 Robots Melted . | . . . . Combat Hostiles . | . . . . Parts Melted 8 | . 2 2 4 Heat Transferred 4403 | . 814 1628 1961 Parts Sabotaged . | . . . . Parts Stolen . | . . . . Parts Stripped . | . . . . Power Chain Reactions . | . . . . Alert | -11 -10 -9 -8 ------- Run | Yrd Mat Mat Mat Peak Influence 617 | . 302 617 439 Initial 219 | . . 63 219 Average 327 | . 188 393 298 Maximum Alert Level 2 | . 1 2 2 Low Security (%) 13 | 100 51 9 . Level 1 61 | . 48 45 91 Level 2 25 | . . 44 8 Level 3 . | . . . . Level 4 . | . . . . Level 5 . | . . . . High Security . | . . . . Max Security . | . . . . Squads Dispatched 17 | . 3 8 6 Investigation 4 | . 1 3 . Extermination . | . . . . Reinforcement 12 | . 2 4 6 Assault 1 | . . 1 . Garrison . | . . . . Intercept . | . . . . Searches Triggered . | . . . . Construction Impeded 1 | . . . 1 Haulers Reinforced . | . . . . Active Scanning Responses . | . . . . Cargo Convoy Interrupts . | . . . . Stealth | -11 -10 -9 -8 --------- Run | Yrd Mat Mat Mat Distress Signals 4 | . . 2 2 Communications Jammed . | . . . . Distress Signals . | . . . . Times Spotted 100 | . 16 45 39 Peak Tracking Total 7 | . 3 6 7 Tactical Retreats 14 | . 2 6 6 Traps | -11 -10 -9 -8 ------- Run | Yrd Mat Mat Mat Traps Triggered 2 | . 1 1 . Indirectly . | . . . . Trap Hack Attempts . | . . . . Triggered . | . . . . Disarmed . | . . . . Reprogrammed . | . . . . Reused . | . . . . Traps Extracted . | . . . . Installed . | . . . . Triggered . | . . . . Machines | -11 -10 -9 -8 ---------- Run | Yrd Mat Mat Mat Machines Disabled 1 | . . 1 . Max in Single Turn 1 | . . 1 . Machines Repaired . | . . . . Machines Dismantled . | . . . . Machines Sabotaged . | . . . . Overloaded Fab Kills . | . . . . Hacking | -11 -10 -9 -8 --------- Run | Yrd Mat Mat Mat Machines Accessed 9 | . 2 4 3 Terminals 4 | . 2 . 2 Fabricators . | . . . . Repair Stations 1 | . . 1 . Recycling Units 3 | . . 2 1 Scanalyzers 1 | . . 1 . Garrison Access . | . . . . Total Hacks 19 | . 3 12 4 Successful 13 | . 2 7 4 Failed 6 | . 1 5 . Catastrophic 1 | . 1 . . Database Lockouts . | . . . . Manual . | . . . . Terminals 6 | . 3 . 3 Fabricators . | . . . . Repair Stations 2 | . . 2 . Recycling Units 8 | . . 7 1 Scanalyzers 3 | . . 3 . Garrison Access . | . . . . Terminal Hacks 5 | . 2 . 3 Prototype ID Bank 1 | . 1 . . Emergency Access Points 1 | . 1 . . Hauler Manifests 1 | . . . 1 Zone Layout 2 | . . . 2 Fabricator Hacks . | . . . . Repair Station Hacks 2 | . . 2 . Scan Component 1 | . . 1 . Repair 1 | . . 1 . Recycling Unit Hacks 3 | . . 2 1 Retrieve Components 3 | . . 2 1 Scanalyzer 3 | . . 3 . Insert Component 1 | . . 1 . Analyze 2 | . . 2 . Garrison Access Hacks . | . . . . Unauthorized Hacks . | . . . . Terminals . | . . . . Fabricators . | . . . . Repair Stations . | . . . . Recycling Units . | . . . . Scanalyzers . | . . . . Garrison Access . | . . . . Data Cores Recovered . | . . . . Used . | . . . . Hacking Detections 5 | . 1 2 2 Full Trace Events 2 | . . 2 . Feedback Events 1 | . . 1 . Corruption 1 | . . 1 . Feedback Blocked . | . . . . Robot Schematics Acquired . | . . . . Robots Built . | . . . . Authchips . | . . . . Time . | . . . . Total Robot Build Rating . | . . . . Part Schematics Acquired 1 | . . 1 . Parts Built . | . . . . Authchips . | . . . . Time . | . . . . Total Part Build Rating . | . . . . Parts Repaired 1 | . . 1 . Time 51 | . . 51 . Parts Recycled . | . . . . Recycled Matter . | . . . . Retrieved Matter . | . . . . Retrieved Components 13 | . . 10 3 Parts Scanalyzed 1 | . . 1 . Part Schematics Acquired 1 | . . 1 . Parts Damaged . | . . . . Bothacking | -11 -10 -9 -8 ------------ Run | Yrd Mat Mat Mat Used RIF Installer . | . . . . Robots Hacked . | . . . . Non-combat . | . . . . Combat . | . . . . Robot Hacks Applied . | . . . . Relay Couplers Released . | . . . . Fabnet Peak Effective % . | . . . . Robots Rewired . | . . . . Allies Hacked . | . . . . Hacks Repelled . | . . . . Allies | -11 -10 -9 -8 -------- Run | Yrd Mat Mat Mat Total Allies . | . . . . Largest Group . | . . . . Highest-Rated Group . | . . . . Highest-Rated Ally . | . . . . Total Orders . | . . . . Ally Attacks . | . . . . Total Damage . | . . . . Kills . | . . . . Allies Corrupted . | . . . . Allies Melted . | . . . . Intel | -11 -10 -9 -8 ------- Run | Yrd Mat Mat Mat Robot Analysis Total . | . . . . Derelict Logs Recovered . | . . . . Drone Launches . | . . . . Drone Recoveries . | . . . . Exploration | -11 -10 -9 -8 ------------- Run | Yrd Mat Mat Mat Turns Passed 3225 | 46 435 1645 1099 Spaces Moved 1519 | 41 347 732 399 Core 4 | 4 . . . Treads 908 | 1 . 662 245 Legs 123 | . . . 123 Wheels 484 | 36 347 70 31 Hover . | . . . . Flight . | . . . . Fastest Speed 50 | 50 80 95 120 Average Speed 143 | 79 90 156 172 Slowest Speed 400 | 160 95 240 400 Overloaded Moves . | . . . . Propulsion Burnouts . | . . . . Robots Hopped . | . . . . Cave-ins Triggered . | . . . . Exploration Rate (%) 35 | 3 51 54 35 Regions Visited 3 Branch Regions . Pre-discovered Areas . | . . . . Known Exits Taken . | . . . . Unknown Exits Taken 3 | 1 1 1 . Scrap Searched . | . . . . Spaces Dug . | . . . . Terrain Destroyed 47 | . . 46 1 Melee . | . . . . Projectile . | . . . . AOE 46 | . . 46 . Terrain Rammed . | . . . . Walls Destroyed . | . . . . Machines Disabled . | . . . . Actions | -11 -10 -9 -8 --------- Run | Yrd Mat Mat Mat Total 2196 | 51 414 1079 652 Wait 254 | . 32 163 59 Move 1516 | 40 346 731 399 Hop . | . . . . Pick Up 58 | 3 4 28 23 Fast Attach 25 | 7 2 7 9 Attach 36 | . . 15 21 Detach 7 | 1 1 3 2 Swap 26 | . 1 12 13 Drop 39 | . 1 14 24 Fire 160 | . 26 70 64 Melee 67 | . . 31 36 Ram 3 | . 1 2 . Kick . | . . . . Crush 5 | . . 3 2 Escape Stasis . | . . . . Rewire . | . . . . Trap . | . . . . Miscellaneous . | . . . . Route ------- -11/Scrapyard -10/Materials -9/Materials (discovered 2 exits: *Mat x2) -8/Materials History --------- Turn | Location | Event 2 | -11/Scrapyard | Met Revision 17 14 | -11/Scrapyard | Discovered new exit (range 16) 47 | -11/Scrapyard | Entered Materials 304 | -10/Materials | Build established: Mutant 400 | -10/Materials | Discovered new exit (range 5) 482 | -10/Materials | Entered another Materials area 482 | -9/Materials | Evolved 2 slots: Propulsion x1, Utility x1 817 | -9/Materials | Discovered new exit (range 11) 1518 | -9/Materials | Core integrity fell below 50% 1569 | -9/Materials | Core integrity fell below 20% 1590 | -9/Materials | Lost 10 parts (2p4n2u2w) 1791 | -9/Materials | Repaired Adv. Beam Cannon 1888 | -9/Materials | Build established: Scavenger-Mutant 2045 | -9/Materials | Discovered new exit (range 4) 2082 | -9/Materials | First assault squad dispatched 2127 | -9/Materials | Entered another Materials area 2127 | -8/Materials | Evolved 2 slots: Power x1, Utility x1 2527 | -8/Materials | Build established: Mutant 2752 | -8/Materials | Lost 10 parts (2p4n2u2w) 2768 | -8/Materials | Destroyed 7 combat bots 2826 | -8/Materials | Found Prototype Device 3045 | -8/Materials | Build established: Scavenger-Mutant 3111 | -8/Materials | Core integrity fell below 50% 3167 | -8/Materials | Core integrity fell below 20% 3226 | -8/Materials | Destroyed by G-47 Trooper with Particle Gun Last Messages --------------- Destroyed Lgt. Treads. Y-45 Defender system corrupted by crushing effect. Y-45 Defender system terminally corrupted. Beam Rifle fried. G-47 Trooper suffers critical hit (Smash). G-47 Trooper destroyed. R-06 Scavenger collects Particle Gun. K-01 Serf collects debris. Acquired Corrupted Lgt. Treads. Lgt. Deuterium Engine destroyed. K-01 Serf collects debris. R-06 Scavenger collects Imp. Heat Sink. Arm. Wheel destroyed. Critical hit (Burn: +37). G-47 Trooper knocked back. Critical hit (Burn: +37). K-01 Serf collects debris. R-06 Scavenger collects Corrupted Heat Sink. K-01 Serf cleans the Fusion Modulator. Map ----- +----------------------------------------------------+ | ???????????########### #???????????????? ????#???? | | ???????????# # #?????????????????????????? | | ???????????# # #??????? ???#????????#????? | | ???????????# # #?????????????????????????? | | ???????????# + #?##########??????????????? | | ???????????# # # ] !!! #??????????????? | | ???????????# # # !!* #???????????????? | | ???????????# # + "T" !! #???????????????? | | ???????????# # # """ #???????????????? | | ???????#########+##### #####+##########??????????? | | ???????# ????????? | | ???????# ????????? | | ???????# """ % ????????? | | ???????# "T" #######/#########???????????????? | | ???????# #?# % % #????????????????????? | | ???????# #?# """ #????????????????????? | | ???????# #?# """ ! #????????????????????? | | ?????? ?# """ #????????????????????? | | ????? ?# #????????????????????? | | ????? ?# #????????????????????? | | ?????####/##### ?# " " #????????????????????? | | ???????? ????# ?# "R" #????????????????????? | | ???????""?????# ?# """% % #??####??????????????? | | ??????????????# #######+### #??????????????? | | ??????????????# g r #??????????????? | | ??????????????+ @ #??????????????? | | ??????????????# g #??????????????? | | ??????????????####+########## #??????????????? | | ???????????????? ???????????# ##??????????????? | | ???????????????#?????????????? #???????????????? | | ??????????????????????????????? #???????????????? | | ???????????????????????????????? #???????????????? | | ?????????????????????????????????#???????????????? | | ?????????????????????????????????????????????????? | | ?????????????????????????????????????????????????? | | ?????????????????????????????????????????????????? | | ?????????????????????????????????????????????????? | | ?????????????????????????????????????????????????? | | ?????????????????????????????????????????????????? | | ?????????????????????????????????????????????????? | | ?????????????????????????????????????????????????? | | ?????????????????????????????????????????????????? | | ?????????????????????????????????????????????????? | | ?????????????????????????????????????????????????? | | ?????????????????????????????????????????????????? | | ?????????????????????????????????????????????????? | | ?????????????????????????????????????????????????? | | ?????????????????????????????????????????????????? | | ?????????????????????????????????????????????????? | | | +----------------------------------------------------+ Best States ------------- Heat Dissipation 45 Energy Generation 25 Energy Capacity 430 Matter Stores 300 Matter Capacity 300 Sight Range 18 Robot Scan Range 14 Terrain Scan Range 16 Terrain Scan Density 210 Armor Coverage 300 Weapon Cycling 15 Evasion (%) 55 Recoil Reduction 3 Defensive Hacking 10 Item Schematics ----------------- Med. Armor Plating | -9/Materials | Scanalyzed Robot Schematics ------------------ None Fabricated ------------ Nothing Alien Tech Used ----------------- None Achievements -------------- Significant Disruption Challenges ------------ None Game ------ Seed GaussSlugDissipator Manual? 0 Play Time 00:41:27 Cumulative 22.4 hours Start 2025.03.23 @ 16:04:16 End 2025.03.23 @ 19:23:55 Sessions 2 Manual Loads 0 Difficulty Rogue Special Mode None Game No. 35 Rogue 35 Adventurer 0 Explorer 0 Win Type - Total 0 Types 0/0/0/0/0/0/0/0/0 Lore% 5 Gallery% 23 Achievement% 21 Wizard Run 0 Options --------- Layout 1 ASCII 0 Keyboard 0 Movement Numpad Keybinds 0 Fullscreen 1 Font 48/Smallcaps Map View 50x35 Zoom Use 0% Tactical HUD 0 Map Filters NONE Filters NONE Steam 1 RUN: e22de1c9-f90c-46b3-91a6-a3450baeeb5f